lending/lending_fUSD_20241120
["ID","MTS","AMOUNT","RATE_DAILY","PERIOD"]
[342772140,1732131065973,-151.0,0.000499,120]
[342772141,1732131065983,-151.0,0.000499,120]
[342772142,1732131065993,-151.0,0.000499,120]
[342772143,1732131066003,-151.0,0.000499,120]
[342772144,1732131066014,-151.13868,0.000499,120]
[342772145,1732131066024,-156.5,0.000499,48]
[342772146,1732131066035,-156.5,0.000499,48]
[342772147,1732131066045,-1629.33,0.00049953,2]
[342772148,1732131066055,-1000.0,0.00049999,120]
[342772149,1732131066066,-50000.0,0.0005,30]
[342772150,1732131066079,-50000.0,0.0005,40]
[342772151,1732131066091,-50000.0,0.0005,50]
[342772152,1732131066102,-300.0,0.0005,3]
[342772153,1732131066112,-156.96,0.0005,120]
[342772154,1732131066123,-700.0,0.0005,120]
[342772155,1732131066134,-500.32538365,0.0005,30]
[342772156,1732131066143,-1000.0,0.0005,30]
[342772157,1732131066154,-1000.0,0.0005,30]
[342772158,1732131066164,-1000.0,0.0005,30]
[342772159,1732131066175,-1800.0,0.0005,120]
[342772160,1732131066185,-630.0,0.0005,30]
[342772161,1732131066195,-500.0,0.0005,120]
[342772162,1732131066205,-223.7165863,0.0005,120]
[342772163,1732131066215,-5447.66196849,0.0005,60]
[342772164,1732131066225,-802.74319281,0.0005,120]
[342772165,1732131066236,-199.19856481,0.0005,120]
[342772166,1732131066247,-5000.0,0.0005,120]
[342772167,1732131066258,-150.0,0.0005,120]
[342772168,1732131066268,-127877.03098958,0.0005,120]
[342772169,1732131066278,-3000.0,0.0005,120]
[342772170,1732131066289,-900.0,0.0005,51]
[342772171,1732131066299,-2990.45,0.0005,120]
[342772172,1732131066309,-14462.70908889,0.0005,120]
[342772173,1732131066319,-151.49263,0.0005,120]
[342772174,1732131066332,-151.0,0.0005,120]
[342772175,1732131066343,-151.137224,0.0005,120]
[342772176,1732131066353,-172.69894,0.0005,120]
[342772177,1732131066364,-167.152917,0.0005,120]
[342772178,1732131066374,-172.69894,0.0005,120]
[342772179,1732131066384,-407.630963,0.0005,120]
[342772180,1732131066394,-151.0,0.0005,120]
[342772181,1732131066404,-407.630963,0.0005,120]
[342772182,1732131066415,-151.0,0.0005,120]
[342772183,1732131066424,-151.0,0.0005,120]
[342772184,1732131066435,-151.0,0.0005,120]
[342772185,1732131066444,-151.0,0.0005,120]
[342772186,1732131066454,-151.0,0.0005,120]
[342772187,1732131066464,-220.716732,0.0005,120]
[342772188,1732131066474,-220.716732,0.0005,120]
[342772189,1732131066484,-151.0,0.0005,7]
[342772190,1732131066494,-151.0,0.0005,7]
[342772191,1732131066504,-151.0,0.0005,120]
[342772192,1732131066516,-151.0,0.0005,120]
[342772193,1732131066527,-4960.59,0.0005,120]
[342772194,1732131066537,-151.0,0.0005,120]
[342772195,1732131066546,-151.0,0.0005,110]
[342772196,1732131066556,-231.758115,0.0005,120]
[342772197,1732131066566,-231.758115,0.0005,120]
[342772198,1732131066578,-2949.99,0.0005,120]
[342772199,1732131066588,-12500.0,0.0005,120]
[342772200,1732131066597,-816.79,0.0005,120]
[342772201,1732131066607,-9286.09,0.0005,120]
[342772202,1732131066617,-12499.99,0.0005,120]
[342772203,1732131066626,-3287.91578915,0.0005,30]
[342772204,1732131066636,-12500.0,0.0005,120]
[342772205,1732131066646,-1534.19421347,0.0005,60]
[342772206,1732131066655,-2605.386282,0.0005,5]
[342772207,1732131066665,-123944.23498913,0.0005,120]
[342772208,1732131066674,-199.99,0.0005,120]
[342772209,1732131066684,-12500.0,0.0005025,120]
[342772210,1732131066695,-12500.0,0.0005025,120]
[342772211,1732131066705,-443.151,0.0005048,120]
[342772212,1732131066980,-12500.0,0.000505,120]
[342772213,1732131067029,-12500.0,0.000505,120]
[342772214,1732131067038,-5010.47739162,0.00050684,70]
[342772215,1732131067048,-578.0,0.0005069,2]
[342772216,1732131067057,-538.60556484,0.000507,120]
[342772217,1732131067067,-12500.0,0.0005075,120]
[342772218,1732131067080,-10776.99,0.0005075,120]
[342772219,1732131067092,-2421.58710375,0.00050794,90]
[342772220,1732131067101,-216.2907989,0.000509,120]
[342772221,1732131067110,-4009.2779718,0.00050965,2]
[342772222,1732131067119,-1035.0631495,0.00050965,2]
[342772223,1732131067129,-50000.0,0.00051,31]
[342772224,1732131067138,-50000.0,0.00051,41]
[342772225,1732131067148,-50000.0,0.00051,51]
[342772226,1732131067157,-182328.07877048,0.00051,120]
[342772227,1732131067167,-900.0,0.00051,52]
[342772228,1732131067177,-2789.70175118,0.00051,30]
[342772229,1732131067186,-802.32152508,0.00051,120]
[342772230,1732131067195,-115583.60750462,0.00051,30]
[342772231,1732131067908,-150.0,0.00043216,7]
[342772232,1732131067917,-150.0,0.00043716,7]
[342772233,1732131067926,-7015.09432345,0.00051,30]
[342772234,1732131067961,-150.0,0.00043021,7]
[342772235,1732131067970,-150.0,0.00043302,7]
[342772236,1732131067979,-323.607572,0.00051,30]
[342772237,1732131067991,-6544.78610127,0.00051,30]
[342772238,1732131068002,-7640.25544319,0.00051,30]
[342772239,1732131068011,-150.0,0.00051,100]
[342772240,1732131068020,-600.0,0.00051,2]
[342772241,1732131068031,-600.0,0.00051,2]
[342772242,1732131068040,-8980.13565508,0.00051,120]
[342772243,1732131068051,-1592.08175704,0.00051,120]
[342772244,1732131068062,-1927.78258788,0.00051,120]
[342772245,1732131068072,-205.0,0.0005101,30]
[342772246,1732131068088,-160.6,0.000511,120]
[342772247,1732131068098,-542.94741152,0.00051115,120]
[342772248,1732131068111,-973.10558848,0.00051115,120]
[342772249,1732131068121,-919.037,0.00051115,120]
[342772250,1732131068131,-3747.0,0.00051115,120]
[342772251,1732131068141,-815.0,0.00051115,2]
[342772252,1732131068150,-278.399,0.00051115,120]
[342772253,1732131068163,-1256.0,0.00051115,120]
[342772254,1732131068173,-564.0,0.00051115,120]
[342772255,1732131068183,-150.0,0.00051115,120]
[342772256,1732131068193,-632.0,0.00051115,120]
[342772257,1732131068202,-231.090199,0.00051123,120]
[342772258,1732131068212,-151.0,0.00051123,120]
[342772259,1732131068223,-151.086672,0.00051123,120]
[342772260,1732131068232,-151.315731,0.00051123,120]
[342772261,1732131068241,-785.175163,0.00051123,120]
[342772262,1732131068251,-151.0,0.00051123,120]
[342772263,1732131068262,-151.0,0.00051123,120]
[342772264,1732131068274,-785.175163,0.00051123,120]
[342772265,1732131068283,-151.0,0.00051123,120]
[342772266,1732131068293,-2204.877046,0.00051123,120]
[342772267,1732131068303,-2204.877046,0.00051123,120]
[342772268,1732131068312,-436.917262,0.00051123,120]
[342772269,1732131068322,-436.917262,0.00051123,120]
[342772270,1732131068333,-5450.382091,0.00051123,120]
[342772271,1732131068342,-5450.382091,0.00051123,120]
[342772272,1732131068352,-4018.84,0.00051123,120]
[342772273,1732131068361,-4018.84,0.00051123,120]
[342772274,1732131068371,-4018.84,0.00051123,120]
[342772275,1732131068381,-4018.84,0.00051123,120]
[342772276,1732131068391,-2366.56268552,0.00051123,120]
[342772277,1732131068458,-1652.27731448,0.00051123,120]
[342772278,1732131068467,-4018.84,0.00051123,120]
[342772279,1732131068482,-505.35315457,0.00051123,120]
[342772280,1732131068493,-3428.06905264,0.00051123,120]
[342772281,1732131068504,-85.41779279,0.00051123,120]
[342772282,1732131068513,-4018.84,0.00051123,120]
[342772283,1732131068523,-2838.17166362,0.00051123,120]
[342772284,1732131069721,-633.0,0.0001,2]
[342772285,1732131069732,-851.113808,0.000312,14]
[342772286,1732131069742,-314.91360779,0.000322,14]
[342772287,1732131069753,-185.08639221,0.000322,14]
[342772288,1732131069763,-379.92,0.00042755,30]
[342772289,1732131069772,-150.0,0.00042824,7]
[342772290,1732131069782,-150.0,0.00042973,7]
[342772291,1732131069791,-150.0,0.00043028,7]
[342772292,1732131069800,-150.0,0.00043048,7]
[342772293,1732131069809,-150.0,0.00043132,7]
[342772294,1732131069819,-150.0,0.0004316,7]
[342772295,1732131069828,-150.0,0.00043176,7]
[342772296,1732131069839,-150.0,0.00043188,7]
[342772297,1732131069848,-150.0,0.00043226,7]
[342772298,1732131069857,-150.0,0.00043256,7]
[342772299,1732131069866,-150.0,0.00043274,7]
[342772300,1732131069875,-150.0,0.00043552,7]
[342772301,1732131069884,-150.0,0.00043581,7]
[342772302,1732131069894,-150.0,0.00043584,7]
[342772303,1732131069902,-150.0,0.000436,7]
[342772304,1732131069911,-150.0,0.00043662,7]
[342772305,1732131069920,-150.0,0.00043695,7]
[342772306,1732131069929,-150.0,0.00043765,7]
[342772307,1732131069938,-150.0,0.00043766,7]
[342772308,1732131069947,-151.0,0.0004888,14]
[342772309,1732131069956,-1115.12005779,0.00051123,120]
[342772310,1732131069968,-65.54827859,0.00051123,120]
[342772311,1732131069977,-1452.45172141,0.00051123,120]
[342772312,1732131089718,-151.0,0.000498,120]
[342772313,1732131089727,-2566.38827859,0.00051123,120]
[342772314,1732131089737,-4018.84,0.00051123,120]
[342772315,1732131089746,-1519.47086362,0.00051123,120]
[342772316,1732131089758,-295.1330778,0.00051123,120]
[342772317,1732131089787,-150.0,0.00043661,7]
[342772318,1732131089796,-150.0,0.00043737,7]
[342772319,1732131089805,-2204.23605858,0.00051123,120]
[342772320,1732131089814,-4018.84,0.00051123,120]
[342772321,1732131089823,-4018.84,0.00051123,120]
[342772322,1732131089833,-4018.84,0.00051123,120]
[342772323,1732131089842,-4018.84,0.00051123,120]
[342772324,1732131089857,-4018.84,0.00051123,120]
[342772325,1732131089866,-4018.84,0.00051123,120]
[342772326,1732131089875,-4018.84,0.00051123,120]
[342772327,1732131089884,-4018.84,0.00051123,120]
[342772328,1732131089894,-4018.84,0.00051123,120]
[342772329,1732131089903,-4018.84,0.00051123,120]
[342772330,1732131089913,-4018.84,0.00051123,120]
[342772331,1732131089922,-4018.93477767,0.00051123,120]
[342772332,1732131089931,-9972.0,0.00051172,117]
[342772333,1732131089942,-12500.0,0.0005125,120]
[342772334,1732131089952,-1000.0,0.000513,120]
[342772335,1732131089961,-1000.0,0.000513,120]
[342772336,1732131089971,-1000.0,0.000513,120]
[342772337,1732131089980,-1000.0,0.000513,120]
[342772338,1732131089990,-664.00856593,0.000513,120]
[342772339,1732131090000,-151.0,0.0005137,120]
[342772340,1732131090011,-833.29572122,0.00051418,74]
[342772341,1732131090023,-933.204036,0.00051418,74]
[342772342,1732131090036,-283.61763849,0.00051418,74]
[342772343,1732131090047,-336.34048346,0.00051418,74]
[342772344,1732131090058,-291.54212083,0.00051418,74]
[342772345,1732131090068,-181.625041,0.000515,120]
[342772346,1732131090079,-150.0,0.000515,101]
[342772347,1732131090090,-272.10309144,0.000515,120]
[342772348,1732131090575,1795.06130703,0.00025,120]
[342772349,1732132042149,-3380.2545,9.7e-05,2]
[342772350,1732132042175,-150.0,9.899e-05,2]
[342772351,1732132042197,-300.0,9.899e-05,2]
[342772352,1732132042221,-2195.09989038,9.9e-05,2]
[342772353,1732132047128,-2181.37871285,9.9e-05,2]
[342772372,1732132231721,-1539.6573271,9.9e-05,2]
[342772374,1732132231732,-629.999999,9.9e-05,2]
[342772382,1732132231795,-7492.01597406,9.9e-05,2]
[342772386,1732132238396,-3578.38539213,9.9e-05,2]
[342772387,1732132238433,-12052.74233246,9.9e-05,2]
[342772388,1732132238445,-326.82220256,9.9e-05,2]
[342772389,1732132238456,-934.45340928,9.9e-05,2]
[342772390,1732132238468,-2685.06030529,9.9e-05,2]
[342772391,1732132238482,-364.00005,9.9e-05,2]
[342772392,1732132238594,-1806.54474,9.9e-05,2]
[342772393,1732132238641,-17084.76856489,9.9e-05,2]
[342772394,1732132238650,-150.0,0.00010879,2]
[342772395,1732132238661,-150.0,0.00012082,2]
[342772396,1732132238672,-648.61318201,0.000121,2]
[342772397,1732132238682,-151.0,0.00012329,2]
[342772398,1732132238692,-150.0,0.00014999,2]
[342772399,1732132238701,-6127.0,0.00015,2]
[342772400,1732132238711,-281.72,0.00015342,2]
[342772401,1732132238720,-157.22,0.00015342,2]
[342772402,1732132238730,-150.99,0.00016116,2]
[342772403,1732132238739,-220.36,0.00016116,4]
[342772404,1732132238748,-1256.0,0.00018295,2]
[342772405,1732132238757,-298.4,0.00018295,2]
[342772406,1732132238766,-1994.0,0.00018295,2]
[342772407,1732132238775,-560.0,0.00018295,2]
[342772408,1732132238785,-295.053,0.00018295,2]
[342772409,1732132238794,-815.0,0.00018295,2]
[342772410,1732132238803,-3747.0,0.00018295,2]
[342772411,1732132238812,-3931.937,0.00018295,2]
[342772412,1732132238822,-150.0,0.00018295,2]
[342772413,1732132238832,-268.24,0.000193,2]
[342772414,1732132238841,-1060.915,0.00021295,2]
[342772415,1732132238850,-1994.0,0.00021295,2]
[342772416,1732132238859,-560.0,0.00021295,2]
[342772417,1732132238868,-150.0,0.00021295,2]
[342772418,1732132238877,-815.0,0.00021295,2]
[342772419,1732132238887,-3747.0,0.00021295,2]
[342772420,1732132238896,-150.0,0.00021295,2]
[342772421,1732132238905,-281.72,0.00021745,2]
[342772422,1732132238915,-515.0,0.00022,15]
[342772423,1732132238926,-157.22,0.00022945,2]
[342772424,1732132238936,-500.0,0.00024273,2]
[342772425,1732132238946,-500.0,0.00024273,2]
[342772426,1732132238955,-500.0,0.00024295,2]
[342772427,1732132238964,-500.0,0.00024295,2]
[342772428,1732132238973,-500.0,0.00024295,2]
[342772429,1732132238982,-500.0,0.00024295,2]
[342772430,1732132238991,-500.0,0.00024295,2]
[342772431,1732132239001,-500.0,0.00024295,2]
[342772432,1732132239010,-500.0,0.00024295,2]
[342772433,1732132239019,-500.0,0.00024295,2]
[342772434,1732132239028,-500.0,0.00024295,2]
[342772435,1732132239038,-500.0,0.00024295,2]
[342772436,1732132239047,-500.0,0.00024295,2]
[342772437,1732132239056,-500.0,0.00024295,2]
[342772438,1732132239065,-500.0,0.00024295,2]
[342772439,1732132239074,-500.0,0.00024295,2]
[342772440,1732132239083,-500.0,0.00024295,2]
[342772441,1732132239092,-500.0,0.00024295,2]
[342772442,1732132239101,-500.0,0.00024295,2]
[342772443,1732132239111,-500.0,0.00024295,2]
[342772444,1732132239120,-500.0,0.00024295,2]
[342772445,1732132239129,-500.0,0.00024295,2]
[342772446,1732132239138,-500.0,0.00024295,2]
[342772447,1732132239147,-500.0,0.00024295,2]
[342772448,1732132239156,-500.0,0.00024295,2]
[342772449,1732132239165,-500.0,0.00024295,2]
[342772450,1732132239175,-500.0,0.00024295,2]
[342772451,1732132239184,-500.0,0.00024295,2]
[342772452,1732132239193,-500.0,0.00024295,2]
[342772453,1732132239202,-500.0,0.00024295,2]
[342772454,1732132239211,-500.0,0.00024295,2]
[342772455,1732132239221,-500.0,0.00024295,2]
[342772456,1732132239231,-500.0,0.00024295,2]
[342772457,1732132239240,-500.0,0.00024295,2]
[342772458,1732132239251,-500.0,0.00024295,2]
[342772459,1732132239260,-500.0,0.00024295,2]
[342772460,1732132239270,-500.0,0.00024295,2]
[342772461,1732132239279,-500.0,0.00024295,2]
[342772462,1732132239288,-500.0,0.00024295,2]
[342772463,1732132239297,-500.0,0.00024295,2]
[342772464,1732132239307,-500.0,0.00024295,2]
[342772465,1732132239316,-500.0,0.00024295,2]
[342772466,1732132239325,-500.0,0.00024295,2]
[342772467,1732132239336,-500.0,0.00024295,2]
[342772468,1732132239345,-500.0,0.00024295,2]
[342772469,1732132239355,-500.0,0.00024295,2]
[342772470,1732132239364,-500.0,0.00024295,2]
[342772471,1732132239374,-500.0,0.00024295,2]
[342772472,1732132239383,-500.0,0.00024295,2]
[342772473,1732132239392,-500.0,0.00024295,2]
[342772474,1732132239402,-500.0,0.00024295,2]
[342772475,1732132239411,-500.0,0.00024295,2]
[342772476,1732132239422,-500.0,0.00024295,2]
[342772477,1732132239432,-500.0,0.00024295,2]
[342772478,1732132239442,-500.0,0.00024295,2]
[342772479,1732132239452,-500.0,0.00024295,2]
[342772480,1732132239461,-500.0,0.00024295,2]
[342772481,1732132239472,-500.0,0.00024295,2]
[342772482,1732132239483,-500.0,0.00024295,2]
[342772483,1732132239493,-500.0,0.00024295,2]
[342772484,1732132239502,-500.0,0.00024295,2]
[342772485,1732132239513,-500.0,0.00024295,2]
[342772486,1732132239523,-500.0,0.00024295,2]
[342772487,1732132239532,-500.0,0.00024295,2]
[342772488,1732132239541,-500.0,0.00024295,2]
[342772489,1732132239553,-500.0,0.00024295,2]
[342772490,1732132239563,-500.0,0.00024295,2]
[342772491,1732132239572,-500.0,0.00024295,2]
[342772492,1732132239581,-500.0,0.00024295,2]
[342772493,1732132239590,-500.0,0.00024295,2]
[342772494,1732132239600,-500.0,0.00024295,2]
[342772495,1732132239609,-500.0,0.00024295,2]
[342772496,1732132239618,-500.0,0.00024295,2]
[342772497,1732132239628,-500.0,0.00024295,2]
[342772498,1732132239637,-500.0,0.00024295,2]
[342772499,1732132239647,-500.0,0.00024295,2]
[342772500,1732132239657,-500.0,0.00024295,2]
[342772501,1732132239666,-500.0,0.00024295,2]
[342772503,1732132239675,-500.0,0.00024295,2]
[342772505,1732132239685,-500.0,0.00024295,2]
[342772506,1732132239694,-500.0,0.00024295,2]
[342772507,1732132239703,-500.0,0.00024295,2]
[342772508,1732132239713,-500.0,0.00024295,2]
[342772509,1732132239723,-500.0,0.00024295,2]
[342772510,1732132239732,-500.0,0.00024295,2]
[342772511,1732132239742,-500.0,0.00024295,2]
[342772512,1732132239751,-500.0,0.00024295,2]
[342772513,1732132239760,-500.0,0.00024295,2]
[342772514,1732132239770,-500.0,0.00024295,2]
[342772515,1732132239779,-500.0,0.00024295,2]
[342772516,1732132239788,-500.0,0.00024295,2]
[342772517,1732132239797,-500.0,0.00024295,2]
[342772518,1732132239806,-500.0,0.00024295,2]
[342772519,1732132239815,-500.0,0.00024295,2]
[342772520,1732132239825,-500.0,0.00024295,2]
[342772521,1732132239835,-500.0,0.00024295,2]
[342772522,1732132239845,-500.0,0.00024295,2]
[342772523,1732132239855,-500.0,0.00024295,2]
[342772524,1732132239866,-500.0,0.00024295,2]
[342772525,1732132239876,-500.0,0.00024295,2]
[342772526,1732132239886,-500.0,0.00024295,2]
[342772527,1732132239895,-500.0,0.00024295,2]
[342772528,1732132239905,-500.0,0.00024295,2]
[342772529,1732132239916,-1994.0,0.00024295,2]
[342772530,1732132239925,-560.0,0.00024295,2]
[342772531,1732132239935,-150.0,0.00024295,2]
[342772532,1732132239944,-815.0,0.00024295,2]
[342772533,1732132239954,-3747.0,0.00024295,2]
[342772534,1732132239964,-150.0,0.00024295,2]
[342772535,1732132239974,-500.0,0.00024821,2]
[342772537,1732132239983,-300.0,0.00025,2]
[342772539,1732132239993,-369.0,0.00026161,2]
[342772541,1732132240003,-1994.0,0.00027295,2]
[342772543,1732132240012,-560.0,0.00027295,2]
[342772545,1732132240022,-150.0,0.00027295,2]
[342772547,1732132240031,-3747.0,0.00027295,2]
[342772549,1732132240041,-453.0,0.00027375,2]
[342772551,1732132240051,-281.72,0.00028147,2]
[342772553,1732132240061,-7064.34646423,0.00028487,2]
[342772555,1732132240070,-7628.7752,0.00028587,2]
[342772557,1732132240080,-386.0,0.00028646,2]
[342772559,1732132240089,-415.073,0.00028687,20]
[342772561,1732132240098,-1000.0,0.00029798,2]
[342772563,1732132240107,-1994.0,0.00030295,2]
[342772565,1732132240117,-560.0,0.00030295,2]
[342772567,1732132240126,-150.0,0.00030295,2]
[342772569,1732132240136,-1815.117,0.00030295,2]
[342772571,1732132240145,-157.22,0.00030548,2]
[342772573,1732132240155,-1000.0,0.00030552,120]
[342772575,1732132240166,-200.0,0.00030713,2]
[342772577,1732132240175,-150.0,0.00030985,2]
[342772579,1732132240184,-154.21,0.00031019,2]
[342772581,1732132240193,-250.0,0.00031177,2]
[342772583,1732132240203,-500.0,0.00031427,2]
[342772585,1732132240213,-7064.34646417,0.0003146,15]
[342772587,1732132240222,-250.0,0.00031911,2]
[342772589,1732132240232,-2751.0,0.0003197,120]
[342772591,1732132240241,-300.0,0.00031978,2]
[342772593,1732132240251,-299.83,0.00032221,120]
[342772595,1732132240261,-150.91,0.00032877,2]
[342772597,1732132240270,-1994.0,0.00033295,2]
[342772599,1732132240279,-560.0,0.00033295,2]
[342772601,1732132240288,-300.0,0.00033348,2]
[342772603,1732132240297,-156.54,0.000335,31]
[342772605,1732132240307,-1000.0,0.00033523,2]
[342772607,1732132240317,-250.0,0.00033701,120]
[342772609,1732132240326,-150.91,0.00033973,2]
[342772611,1732132240335,-600.0,0.000342,120]
[342772613,1732132240345,-200.0,0.00034218,2]
[342772615,1732132240354,-150.0,0.00034285,4]
[342772617,1732132240363,-1000.0,0.00034371,120]
[342772619,1732132240373,-7064.34646417,0.00034433,15]
[342772621,1732132240383,-201.4,0.00034462,30]
[342772623,1732132240393,-196.0,0.00034462,30]
[342772625,1732132240402,-150.0,0.00034548,10]
[342772627,1732132240412,-281.72,0.00034549,2]
[342772629,1732132240424,-150.91,0.00035068,2]
[342772631,1732132240434,-12325.5355,0.00035079,2]
[342772633,1732132240444,-10877.1473,0.00035079,2]
[342772635,1732132240454,-250.0,0.00035443,2]
[342772637,1732132240464,-3362.634,0.00035462,5]
[342772639,1732132240474,-1500.0,0.00035616,120]
[342772641,1732132240485,-150.91,0.00036164,2]
[342772643,1732132240494,-1994.0,0.00036295,2]
[342772645,1732132240504,-560.0,0.00036295,2]
[342772647,1732132240513,-250.0,0.00037,2]
[342772649,1732132240524,-250.0,0.00037,2]
[342772651,1732132240534,-1000.0,0.00037248,2]
[342772653,1732132240544,-150.91,0.0003726,2]
[342772655,1732132240555,-2500.0,0.00037369,2]
[342772657,1732132240564,-7064.34646417,0.00037405,15]
[342772659,1732132240573,-157.22,0.00038151,2]
[342772661,1732132240583,-1000.0,0.0003819,120]
[342772663,1732132240592,-150.91,0.00038356,2]
[342772674,1732132240686,-160.864486,0.000384,60]
[342772676,1732132240696,-300.0,0.00039,2]
[342772678,1732132240706,-300.0,0.00039,2]
[342772680,1732132240717,-1994.0,0.00039295,2]
[342772682,1732132240727,-560.0,0.00039295,2]
[342772684,1732132240736,-150.91,0.00039452,2]
[342772686,1732132240746,-160.864486,0.0003972,120]
[342772688,1732132240756,-413.1437,0.00040097,60]
[342772690,1732132240766,-7064.34646417,0.00040378,15]
[342772692,1732132240775,-229.0,0.000405,30]
[342772694,1732132240784,-520.2,0.000405,30]
[342772696,1732132240793,-363.0,0.000405,30]
[342772698,1732132240803,-1000.0,0.000405,30]
[342772699,1732132240812,-150.91,0.00040548,2]
[342772700,1732132240822,-281.72,0.00040952,2]
[342772701,1732132240832,-1000.0,0.00040972,2]
[342772702,1732132240842,-2029.0,0.00041,117]
[342772703,1732132240851,-350.0,0.00041,2]
[342772704,1732132240861,-350.0,0.00041,2]
[342772705,1732132240871,-157.0,0.00041096,2]
[342772706,1732132240881,-150.91,0.00041644,2]
[342772707,1732132240890,-156.54,0.000417,31]
[342772708,1732132240900,-156.54,0.000417,31]
[342772709,1732132240909,-154.21,0.00041773,2]
[342772710,1732132240921,-1000.0,0.000419,2]
[342772711,1732132240931,-13018.719,0.000419,2]
[342772712,1732132240941,-447.2357142,0.000419,30]
[342772713,1732132240951,-3730.30884082,0.00041999,120]
[342772714,1732132240962,-151.0,0.00042,14]
[342772715,1732132240971,-50000.0,0.00042,120]
[342772716,1732132240981,-565.0,0.00042,5]
[342772717,1732132240990,-1000.0,0.0004201,120]
[342772718,1732132241000,-1994.0,0.00042295,2]
[342772719,1732132241009,-560.0,0.00042295,2]
[342772720,1732132241019,-150.91,0.0004274,2]
[342772721,1732132241029,-151.0,0.00042818,5]
[342772722,1732132241038,-1069.0,0.00043,9]
[342772723,1732132241048,-400.0,0.00043,2]
[342772724,1732132241057,-400.0,0.00043,2]
[342772725,1732132241067,-542.0,0.00043034,7]
[342772726,1732132241076,-6816.79,0.00043037,6]
[342772727,1732132241086,-500.0,0.00043133,10]
[342772728,1732132241095,-2233.0,0.00043185,117]
[342772729,1732132241104,-7064.34646417,0.00043351,15]
[342772730,1732132241115,-299.83,0.00043454,120]
[342772731,1732132241124,-1000.0,0.00043499,2]
[342772732,1732132241133,-641.56170188,0.00043681,10]
[342772733,1732132241143,-19129.41079629,0.0004374,30]
[342772734,1732132241153,-150.91,0.00043836,2]
[342772735,1732132241163,-2653.89,0.00043946,6]
[342772736,1732132241176,-354.457,0.0004401,100]
[342772737,1732132241187,-588.71,0.00044592,6]
[342772738,1732132241196,-1000.0,0.00044697,2]
[342772739,1732132241205,-150.91,0.00044932,2]
[342772740,1732132241215,-800.0,0.00045,120]
[342772741,1732132241225,-1000.0,0.00045,5]
[342772742,1732132241235,-1000.0,0.00045,9]
[342772743,1732132241245,-450.0,0.00045,2]
[342772744,1732132241254,-450.0,0.00045,2]
[342772745,1732132241263,-1994.0,0.00045295,2]
[342772746,1732132241273,-560.0,0.00045295,2]
[342772747,1732132241283,-4872.0,0.0004537,117]
[342772748,1732132241293,-150.0,0.00045589,10]
[342772749,1732132241302,-157.22,0.00045753,2]
[342772750,1732132241312,-200.0,0.000458,2]
[342772751,1732132241322,-1000.0,0.00045829,120]
[342772752,1732132241332,-2668.71,0.00046008,6]
[342772753,1732132241343,-150.91,0.00046027,2]
[342772754,1732132241353,-269.4002558,0.00046137,60]
[342772755,1732132241363,-7064.34646417,0.00046324,15]
[342772756,1732132241374,-269.4002558,0.00046356,60]